bitfinex-derivatives/quotes_BTCF0:USTF0_20241029
["timestamp","ask_amount","ask_price","bid_price","bid_amount"]
[1730166052434,0.15153285,70001.0,70000.0,0.09213413]
[1730166053141,0.28168677,70001.0,70000.0,0.09013413]
[1730166053736,0.2816867,70001.0,70000.0,0.09013413]
[1730166053932,0.2816867,70001.0,69983.0,0.064336]
[1730166053933,0.2173667,70001.0,69983.0,0.064336]
[1730166054144,0.064324,69996.0,69993.0,0.09013413]
[1730166054443,0.1577667,69995.0,69993.0,0.15446013]
[1730166054636,0.1577667,69994.0,69993.0,0.15446013]
[1730166054832,0.1577667,69994.0,69987.0,0.30743855]
[1730166054833,0.21643023,69994.0,69987.0,0.30743855]
[1730166055038,0.064326,69995.0,69993.0,0.09013413]
[1730166055243,0.21644595,69994.0,69993.0,0.13631252]
[1730166055835,0.21744595,69994.0,69993.0,0.13631252]
[1730166056345,0.21644595,69994.0,69993.0,0.10913101]
[1730166056642,0.21644595,69994.0,69993.0,0.11013101]
[1730166056643,0.22444595,69994.0,69993.0,0.11013101]
[1730166057640,0.29277195,69994.0,69993.0,0.11013101]
[1730166057840,0.33387195,69994.0,69993.0,0.11013101]
[1730166058036,0.32587195,69994.0,69993.0,0.10913101]
[1730166058335,0.32587195,69994.0,69987.0,0.30743855]
[1730166058336,0.064331,69989.0,69987.0,0.28635592]
[1730166058531,0.21644595,69988.0,69987.0,0.35068892]
[1730166058738,0.21644595,69988.0,69987.0,0.44082305]
[1730166059145,0.15777818,69988.0,69987.0,0.44082305]
[1730166059443,0.15777818,69988.0,69987.0,0.65602548]
[1730166059631,0.15777818,69988.0,69987.0,0.74715961]
[1730166059941,0.15777818,69988.0,69987.0,0.74815961]
[1730166060147,0.064322,69999.0,69998.0,0.064322]
[1730166060340,0.02761451,69999.0,69998.0,0.15445613]
[1730166061035,0.3608,70007.0,69998.0,0.24459026]
[1730166061236,0.0415,70012.0,70006.0,0.09013413]
[1730166061447,0.06261696,70011.0,70010.0,0.064311]
[1730166061632,0.02761208,70011.0,70010.0,0.15444513]
[1730166062561,0.09192208,70011.0,70010.0,0.13732498]
[1730166063046,0.10592208,70011.0,70010.0,0.13832498]
[1730166063932,0.11992208,70011.0,70010.0,0.002]
[1730166064148,0.19872487,70011.0,70010.0,0.002]
[1730166064651,0.19872487,70011.0,70004.0,0.3608]
[1730166064652,0.064316,70005.0,70004.0,0.3608]
[1730166064841,0.22925306,70005.0,70004.0,0.3608]
[1730166066346,0.24125306,70005.0,70004.0,0.3618]
[1730166066647,0.25125306,70005.0,70004.0,0.3628]
[1730166067355,0.11392808,70005.0,70004.0,0.3628]
[1730166068142,0.064318,70003.0,69999.0,0.064321]
[1730166068439,0.064318,70003.0,70000.0,0.21451811]
[1730166068440,0.21641499,70002.0,70000.0,0.21451811]
[1730166068641,0.21641499,70001.0,70000.0,0.21451811]
[1730166069040,0.21641499,70001.0,69999.0,0.04996714]
[1730166069252,0.064318,70003.0,69999.0,0.05096714]
[1730166069253,0.21641499,70000.0,69999.0,0.05096714]
[1730166069560,0.15775597,70000.0,69999.0,0.26645027]
[1730166069948,0.15775597,70000.0,69999.0,0.26545027]
[1730166070138,0.13014389,70000.0,69999.0,0.26545027]
[1730166070751,0.13014474,70000.0,69999.0,0.26545027]
[1730166070946,0.13014474,70000.0,69999.0,0.26445027]
[1730166071153,0.13014474,70000.0,69999.0,0.26545027]
[1730166071549,0.13014474,70000.0,69999.0,0.26445027]
[1730166071850,0.14414474,70000.0,69999.0,0.26645027]
[1730166073951,0.28146972,70000.0,69999.0,0.002]
[1730166074154,0.34579072,70000.0,69999.0,0.002]
[1730166074351,0.14414474,70000.0,69999.0,0.066321]
[1730166075077,0.014,70000.0,69999.0,0.20364598]
[1730166080263,0.014,70000.0,69999.0,0.41774143]
[1730166080859,0.15132498,70000.0,69999.0,0.21609545]
[1730166081165,0.57644598,70000.0,69999.0,0.002]
[1730166083262,0.70660691,70000.0,69999.0,0.002]
[1730166083658,0.74850691,70000.0,69999.0,0.002]
[1730166084660,0.74850701,70000.0,69999.0,0.002]
[1730166084861,0.76893653,70000.0,69999.0,0.002]
[1730166085362,0.95439798,70000.0,69999.0,0.002]
[1730166085665,0.76893653,70000.0,69999.0,0.002]
[1730166086066,0.74850701,70000.0,69999.0,0.002]
[1730166086270,0.61118203,70000.0,69999.0,0.002]
[1730166088270,0.61118203,70000.0,69999.0,0.066321]
[1730166089568,0.56928203,70000.0,69999.0,0.066321]
[1730166090080,0.439121,70000.0,69999.0,0.066321]
[1730166090375,0.014,70000.0,69999.0,0.066321]
[1730166091867,0.014,70000.0,69999.0,0.08691154]
[1730166093971,0.3748,70000.0,69999.0,0.08691154]
[1730166095671,0.3748,70000.0,69999.0,0.30183491]
[1730166095672,0.014,70000.0,69999.0,0.30183491]
[1730166096375,0.014,70000.0,69999.0,0.50183491]
[1730166097063,0.014,70000.0,69999.0,0.93039491]
[1730166098076,0.14413058,70000.0,69999.0,0.93039491]
[1730166098482,0.32959203,70000.0,69999.0,0.93039491]
[1730166098872,0.14413058,70000.0,69999.0,0.93039491]
[1730166100480,0.14413058,70000.0,69999.0,0.70154849]
[1730166100878,0.14413058,70000.0,69999.0,0.76586949]
[1730166101176,0.14413058,70000.0,69999.0,0.35795298]
[1730166101572,0.13813058,70000.0,69999.0,0.35995298]
[1730166102080,0.32364134,70000.0,69999.0,0.35995298]
[1730166102282,0.13813058,70000.0,69999.0,0.35995298]
[1730166102476,0.32361559,70000.0,69999.0,0.45007335]
[1730166103166,0.31561559,70000.0,69999.0,0.45007335]
[1730166103578,0.31561559,70000.0,69999.0,0.35995298]
[1730166103891,0.31561559,70000.0,69999.0,0.45007335]
[1730166105184,0.18548501,70001.0,70000.0,0.064321]
[1730166105383,0.18548501,70001.0,70000.0,0.19374137]
[1730166105582,0.064311,70011.0,70006.0,0.064315]
[1730166105892,0.064311,70011.0,70006.0,0.15443537]
[1730166107871,0.084311,70011.0,70006.0,0.09212037]
[1730166108074,0.084311,70011.0,70007.0,0.064314]
[1730166109975,0.084311,70011.0,70007.0,0.065314]
[1730166110187,0.073311,70011.0,70007.0,0.065314]
[1730166110487,0.073311,70011.0,70007.0,0.066314]
[1730166110488,0.084311,70011.0,70007.0,0.066314]
[1730166112378,0.064313,70009.0,70007.0,0.066314]
[1730166112573,0.064313,70009.0,70007.0,0.002]
[1730166113484,0.064313,70009.0,70007.0,0.001]
[1730166113688,0.064313,70009.0,70007.0,0.002]
[1730166113689,0.16143337,70009.0,70007.0,0.002]
[1730166113889,0.17043337,70009.0,70007.0,0.002]
[1730166114481,0.064313,70008.0,70007.0,0.002]
[1730166114682,0.09931358,70008.0,70007.0,0.002]
[1730166114888,0.54161358,70008.0,70007.0,0.002]
[1730166116278,0.54161358,70008.0,70007.0,0.001]
[1730166116475,0.54961358,70008.0,70007.0,0.001]
[1730166116677,0.55561358,70008.0,70007.0,0.002]
[1730166117791,0.55561514,70008.0,70007.0,0.002]
[1730166119687,0.55561515,70008.0,70007.0,0.002]
[1730166120193,0.65075303,70008.0,70007.0,0.002]
[1730166121188,0.65075302,70008.0,70007.0,0.002]
[1730166124690,0.65075303,70008.0,70007.0,0.002]
[1730166127301,0.28995303,70008.0,70007.0,0.002]
[1730166127494,0.65075303,70008.0,70007.0,0.002]
[1730166128295,0.520613,70008.0,70007.0,0.00172214]
[1730166129499,0.159813,70008.0,70007.0,0.00172214]
[1730166129701,0.520613,70008.0,70007.0,0.00172214]
[1730166131799,0.54158193,70008.0,70007.0,0.00172214]
[1730166133996,0.54158193,70008.0,69989.0,0.3608]
[1730166133997,0.064325,69996.0,69989.0,0.3608]
[1730166134196,0.09012037,69995.0,69989.0,0.3608]
[1730166134401,0.3608,69999.0,69996.0,0.064324]
[1730166134702,0.3608,69999.0,69997.0,0.09012037]
[1730166135110,0.3608,69999.0,69998.0,0.064322]
[1730166137016,0.3608,69999.0,69998.0,0.067322]
[1730166137310,0.3608,69999.0,69998.0,0.068322]
[1730166139609,0.0395,70007.0,69998.0,0.02507382]
[1730166139811,0.36156,70008.0,70006.0,0.09012037]
[1730166140011,0.3608,70008.0,70006.0,0.09012037]
[1730166140822,0.007,70007.0,70006.0,0.15443437]
[1730166141318,0.3608,70008.0,70007.0,0.064314]
[1730166141518,0.3688,70008.0,70007.0,0.064314]
[1730166142923,0.3608,70008.0,70007.0,0.064314]
[1730166143126,0.3668,70008.0,70007.0,0.065314]
[1730166143319,0.49693236,70008.0,70007.0,0.065314]
[1730166143518,0.50493236,70008.0,70007.0,0.066314]
[1730166144027,0.14413236,70008.0,70007.0,0.066314]
[1730166144225,0.09287033,70008.0,70007.0,0.066314]
[1730166145223,0.15718333,70008.0,70007.0,0.002]
[1730166146016,0.078313,70008.0,70007.0,0.002]
[1730166146321,0.15718266,70008.0,70007.0,0.002]
[1730166150328,0.078313,70008.0,70007.0,0.002]
[1730166154229,0.10424916,70008.0,70007.0,0.002]
[1730166157322,0.078313,70008.0,70007.0,0.002]
[1730166158433,0.15718437,70008.0,70007.0,0.002]
[1730166158729,0.15718513,70008.0,70007.0,0.002]
[1730166160023,0.15718513,70008.0,69951.0,0.02144]
[1730166160024,0.064323,69998.0,69995.0,0.064325]
[1730166160228,0.064323,69998.0,69989.0,0.2]
[1730166160229,0.15444437,69996.0,69992.0,0.02543948]
[1730166160535,0.1887924,69995.0,69993.0,0.21285704]
[1730166160722,0.1887924,69994.0,69993.0,0.21285704]
[1730166160922,0.06433,69990.0,69988.0,0.02525153]
[1730166161123,0.13013483,69989.0,69983.0,0.09012037]
[1730166161351,0.13013483,69988.0,69987.0,0.064332]
[1730166161638,0.13013483,69988.0,69987.0,0.27995257]
[1730166163337,0.13015001,69988.0,69987.0,0.27995257]
[1730166163525,0.13115001,69988.0,69987.0,0.28995257]
[1730166164027,0.13115001,69988.0,69987.0,0.81371294]
[1730166164028,0.13215001,69988.0,69987.0,0.81371294]
[1730166164332,0.13215001,69988.0,69987.0,1.17451294]
[1730166164638,0.1869898,69988.0,69987.0,1.17451294]
[1730166164828,0.00155317,69988.0,69987.0,1.17451294]
[1730166165031,0.001,69988.0,69987.0,1.18507505]
[1730166165226,0.002,69988.0,69987.0,1.16951294]
[1730166165431,0.002,69988.0,69987.0,1.49007535]
[1730166165640,0.001,69988.0,69987.0,1.48507535]
[1730166165936,0.00014521,69988.0,69987.0,1.49840059]
[1730166166139,0.00014521,69988.0,69987.0,1.58619572]
[1730166166837,0.064317,70004.0,69987.0,1.65766925]
[1730166167051,0.064317,70004.0,70003.0,0.09012037]
[1730166167536,0.064317,70004.0,70000.0,0.09012037]
[1730166167930,0.064317,70004.0,70001.0,0.21370035]
[1730166168542,0.070317,70004.0,70003.0,0.001]
[1730166168735,0.074317,70004.0,70003.0,0.001]
[1730166168947,0.004,70004.0,70001.0,0.21370035]
[1730166169148,0.064318,70003.0,70001.0,0.21470035]
[1730166169838,0.064318,70003.0,70001.0,0.21370035]
[1730166170643,0.064319,70002.0,70001.0,0.21370035]
[1730166172634,0.070319,70002.0,70001.0,0.21370035]
[1730166173441,0.20046225,70002.0,70001.0,0.21370035]
[1730166173630,0.20046225,70002.0,70001.0,0.23973787]
[1730166174033,0.13614325,70002.0,70001.0,0.30405787]
[1730166174238,0.3859813,70002.0,70001.0,0.23973787]
[1730166174639,0.20046225,70002.0,70001.0,0.23973787]
[1730166175235,0.19646225,70002.0,70001.0,0.23973787]
[1730166175430,0.20046225,70002.0,70001.0,0.23973787]
[1730166175944,0.19946225,70002.0,70001.0,0.23973787]
[1730166177141,0.19846225,70002.0,70001.0,0.23973787]
[1730166178144,0.3839813,70002.0,70001.0,0.23973787]
[1730166179249,0.19846225,70002.0,70001.0,0.23973787]
[1730166180346,0.068319,70002.0,70001.0,0.23973787]
[1730166180747,0.068319,70002.0,70001.0,0.21370035]
[1730166181252,0.429119,70002.0,70001.0,0.21370035]
[1730166181638,0.429119,70002.0,70001.0,0.15290035]
[1730166182548,0.06433,69990.0,69989.0,0.3608]
[1730166182851,0.06433,69990.0,69989.0,0.57615408]
[1730166183856,0.06533,69990.0,69989.0,0.22135408]
[1730166185557,0.06633,69990.0,69989.0,0.23335408]
[1730166188353,0.19649353,69990.0,69989.0,0.23335408]
[1730166189256,0.14521922,69990.0,69989.0,0.23335408]
[1730166189559,0.19649353,69990.0,69989.0,0.23335408]
[1730166189753,0.14521922,69990.0,69989.0,0.23335408]
[1730166190459,0.19649353,69990.0,69989.0,0.23335408]
[1730166190847,0.14521922,69990.0,69989.0,0.23335408]
[1730166191054,0.08088922,69990.0,69989.0,0.23335408]
[1730166191256,0.08088922,69990.0,69989.0,0.38780545]
[1730166191655,0.13216353,69990.0,69989.0,0.22380799]
[1730166191856,0.08088922,69990.0,69989.0,0.74256836]
[1730166194952,0.08088922,69990.0,69989.0,0.65244799]
[1730166195151,0.08088922,69990.0,69989.0,0.74256836]
[1730166195663,0.002,69990.0,69989.0,0.78538619]
[1730166196559,0.002,69990.0,69989.0,0.74256836]
[1730166196758,0.002,69990.0,69989.0,0.76312972]
[1730166199157,0.002,69990.0,69989.0,0.976696]
[1730166199570,0.002,69990.0,69989.0,0.95613464]
[1730166203166,0.002,69990.0,69989.0,0.97669503]
[1730166203460,0.002,69990.0,69989.0,1.69382538]
[1730166203663,0.002,69990.0,69989.0,1.69829503]
[1730166204167,0.002,69990.0,69989.0,1.68220429]
[1730166205071,0.0824,70009.0,70004.0,0.064316]
[1730166205370,0.0824,70009.0,70006.0,0.45092037]
[1730166206264,0.1004,70009.0,70006.0,0.45092037]
[1730166206668,0.064314,70008.0,70006.0,0.45092037]
[1730166206855,0.064314,70008.0,70006.0,0.45192037]
[1730166208158,0.064314,70008.0,70006.0,0.45292037]
[1730166208563,0.073314,70008.0,70006.0,0.45292037]
[1730166208766,0.073314,70008.0,70006.0,0.45192037]
[1730166208970,0.080314,70008.0,70006.0,0.45292037]
[1730166210560,0.13012725,70007.0,70006.0,0.38114043]
[1730166210960,0.13012725,70007.0,70006.0,0.40717632]
[1730166211364,0.19444125,70007.0,70006.0,0.40717632]
[1730166211562,0.19444125,70007.0,70006.0,0.40617632]
[1730166211863,0.20844125,70007.0,70006.0,0.40717632]
[1730166215060,0.20844125,70007.0,70006.0,0.38114043]
[1730166216471,0.20844125,70007.0,70006.0,0.09212037]
[1730166217368,0.15718124,70007.0,70006.0,0.09212037]
[1730166217959,0.15718347,70007.0,70006.0,0.09212037]
[1730166218558,0.10379666,70007.0,70006.0,0.09212037]
[1730166220471,0.078314,70007.0,70006.0,0.09212037]
[1730166222067,0.014,70007.0,70006.0,0.15643537]
[1730166225474,0.078314,70007.0,70006.0,0.09212037]
[1730166233682,0.15718331,70007.0,70006.0,0.09212037]
[1730166237879,0.20844468,70007.0,70006.0,0.09212037]
[1730166238280,0.26709774,70007.0,70006.0,0.002]
[1730166238480,0.26709774,70007.0,70006.0,0.09212037]
[1730166240584,0.20844468,70007.0,70006.0,0.09212037]
[1730166241278,0.20844468,70007.0,70006.0,0.002]
[1730166241479,0.39435721,70007.0,70006.0,0.09212037]
[1730166242185,0.39435721,70007.0,70006.0,0.002]
[1730166242373,0.20844468,70007.0,70006.0,0.002]
[1730166243486,0.20844468,70007.0,70006.0,0.09212037]
[1730166244887,0.20844779,70007.0,70006.0,0.09212037]
[1730166246488,0.15718642,70007.0,70006.0,0.09212037]
[1730166248582,0.078314,70007.0,70006.0,0.09212037]
[1730166252192,0.064325,69995.0,69994.0,0.04289507]
[1730166252385,0.064325,69995.0,69991.0,0.064329]
[1730166252386,0.3608,69995.0,69992.0,0.09012037]
[1730166252585,0.24194637,69994.0,69993.0,0.2]
[1730166253095,0.24194637,69994.0,69993.0,0.4143333]
[1730166253492,0.02517928,70007.0,69993.0,0.30445367]
[1730166253687,0.064314,70007.0,70006.0,0.09012037]
[1730166253887,0.0875,70015.0,70006.0,0.18024074]
[1730166254197,0.0875,70015.0,70014.0,0.09012037]
[1730166254198,0.0446,70015.0,70014.0,0.09012037]
[1730166255900,0.0446,70015.0,70014.0,0.15442837]
[1730166257098,0.0586,70015.0,70014.0,0.15542837]
[1730166257490,0.0576,70015.0,70014.0,0.15542837]
[1730166257691,0.0716,70015.0,70014.0,0.15642837]
[1730166258600,0.0716,70015.0,70014.0,0.18207861]
[1730166259191,0.135907,70015.0,70014.0,0.07054531]
[1730166259396,0.135907,70015.0,70014.0,0.02765024]
[1730166263703,0.21476622,70015.0,70014.0,0.02765024]
[1730166264707,0.55286327,70015.0,70014.0,0.09012037]
[1730166266508,0.32466664,70015.0,70014.0,0.09012037]
[1730166267300,0.55283618,70015.0,70014.0,0.09012037]
[1730166267701,0.55283618,70015.0,70014.0,0.02587552]
[1730166267903,0.55283618,70015.0,70011.0,0.15443037]
[1730166268099,0.18875964,70014.0,70011.0,0.15443037]
[1730166268303,0.18875964,70013.0,70012.0,0.21485478]
[1730166269909,0.18875964,70013.0,70012.0,0.27916478]
[1730166270302,0.20175964,70013.0,70012.0,0.28016478]
[1730166270700,0.024,70013.0,70012.0,0.05234747]
[1730166271701,0.024,70013.0,70012.0,0.002]
[1730166279021,0.019,70013.0,70012.0,0.002]
[1730166279519,0.013,70013.0,70012.0,0.002]
[1730166280721,0.013,70013.0,70012.0,0.06631]
[1730166282218,0.015,70013.0,70012.0,0.06631]
[1730166282609,0.008,70013.0,70012.0,0.06531]
[1730166282808,0.01,70013.0,70012.0,0.06531]
[1730166283011,0.016,70013.0,70012.0,0.06631]
[1730166283222,0.006,70013.0,70012.0,0.06531]
[1730166283519,0.04799523,70013.0,70012.0,0.06631]
[1730166285819,0.20175996,70013.0,70011.0,0.09616397]
[1730166286125,0.18875996,70012.0,70011.0,0.16047397]
[1730166286525,0.18875996,70012.0,70011.0,0.37533438]
[1730166286717,0.18875996,70012.0,70011.0,0.24116324]
[1730166286718,0.25306996,70012.0,70011.0,0.24116324]
[1730166286920,0.25306996,70012.0,70011.0,0.21486041]
[1730166287325,0.4812395,70012.0,70008.0,0.064313]
[1730166287621,0.4812395,70012.0,70009.0,0.21327529]
[1730166287622,0.17241429,70011.0,70009.0,0.21327529]
[1730166287817,0.13011429,70010.0,70009.0,0.27758729]
[1730166288017,0.13011429,70010.0,70009.0,0.36770766]
[1730166288321,0.13011429,70010.0,70009.0,0.15443237]
[1730166288629,0.13011429,70010.0,70009.0,0.36944637]
[1730166288817,0.13011429,70010.0,70009.0,0.37044637]
[1730166289727,0.13211429,70010.0,70009.0,0.37044637]
[1730166290219,0.13211429,70010.0,70009.0,0.36944637]
[1730166290422,0.13611429,70010.0,70009.0,0.36944637]
[1730166291023,0.13411429,70010.0,70009.0,0.36944637]
[1730166291229,0.13711429,70010.0,70009.0,0.36944637]
[1730166291917,0.13611891,70010.0,70009.0,0.36944637]
[1730166293732,0.13611891,70010.0,70009.0,0.73024637]
[1730166293920,0.006,70010.0,70009.0,0.73024637]
[1730166294222,0.006,70010.0,70009.0,0.82036674]
[1730166294527,0.006,70010.0,70009.0,0.640126]
[1730166294719,0.006,70010.0,70009.0,0.82036674]
[1730166295028,0.006,70010.0,70009.0,1.02036674]
[1730166295430,0.006,70010.0,70009.0,0.93024637]
[1730166300425,0.006,70010.0,70009.0,0.73024637]
[1730166300629,0.006,70010.0,70009.0,0.215014]
[1730166300929,0.59657868,70010.0,69996.0,0.09012037]
[1730166301121,0.09012037,70005.0,70002.0,0.064318]
[1730166301330,0.18877868,70004.0,70002.0,0.064318]
[1730166301632,0.18877868,70003.0,70002.0,0.064318]
[1730166301819,0.41735517,70003.0,70002.0,0.064318]
[1730166302424,0.41735517,70003.0,69999.0,0.09012037]
[1730166302620,0.18568787,70001.0,69996.0,0.008]
[1730166302816,0.13012711,70000.0,69999.0,0.064321]
[1730166303525,0.31576142,70000.0,69999.0,0.064321]
[1730166303830,0.13012711,70000.0,69999.0,0.064321]
[1730166304027,0.13013702,70000.0,69999.0,0.064321]
[1730166304629,0.13113702,70000.0,69999.0,0.069321]
[1730166305719,0.13113702,70000.0,69999.0,0.28357164]
[1730166305939,0.13213702,70000.0,69999.0,0.28957164]
[1730166306428,0.13113702,70000.0,69999.0,0.28457164]
[1730166306619,0.13213702,70000.0,69999.0,0.28957164]
[1730166307934,0.002,70000.0,69999.0,0.33246671]
[1730166308228,0.002,70000.0,69999.0,0.28957164]
[1730166308831,0.09212037,70000.0,69999.0,0.22525064]
[1730166309133,0.15644137,70000.0,69999.0,0.011]
[1730166311836,0.67512174,70000.0,69988.0,0.6405419]
[1730166312026,0.425131,69989.0,69988.0,0.6405419]
[1730166312431,0.506231,69989.0,69988.0,0.6405419]
[1730166312827,1.23134,69989.0,69980.0,0.00214285]
[1730166313026,0.425138,69981.0,69980.0,0.09226322]
[1730166313636,0.425138,69981.0,69980.0,0.00214285]
[1730166313637,0.51525837,69981.0,69980.0,0.00214285]
[1730166314131,0.425138,69981.0,69980.0,0.00214285]
[1730166314338,0.94393837,69981.0,69980.0,0.00214285]
[1730166314840,0.94493837,69981.0,69980.0,0.00814285]
[1730166315234,0.426138,69981.0,69980.0,0.00814285]
[1730166315429,0.426138,69981.0,69980.0,0.09826322]
[1730166315832,0.49198791,69981.0,69980.0,0.09826322]
[1730166316029,0.49198791,69981.0,69980.0,0.16260222]
[1730166316344,0.49198791,69981.0,69980.0,0.15660222]
[1730166316540,0.49198791,69981.0,69980.0,0.24672259]
[1730166316736,0.49298461,69981.0,69980.0,0.45966112]
[1730166316946,0.49198461,69981.0,69980.0,0.45966112]
[1730166317133,0.49198461,69981.0,69980.0,0.36954075]
[1730166317438,0.49298461,69981.0,69980.0,0.36954075]
[1730166318129,0.49298461,69981.0,69980.0,0.45966112]
[1730166318328,0.49298461,69981.0,69980.0,0.36954075]
[1730166318837,0.49298461,69981.0,69980.0,0.39534889]
[1730166320539,0.49298461,69981.0,69980.0,0.44260065]
[1730166320938,0.64934693,69981.0,69980.0,0.44260065]
[1730166321238,0.64934635,69981.0,69980.0,0.44260065]
[1730166321543,0.441704,69981.0,69980.0,0.44260065]
[1730166322242,0.080904,69981.0,69980.0,0.44260065]
[1730166322843,0.002,69981.0,69980.0,0.44260065]
[1730166325644,0.002,69981.0,69980.0,0.30522852]
[1730166328442,0.002,69981.0,69980.0,0.34795062]
[1730166328738,0.002,69981.0,69980.0,0.30522852]
[1730166330136,0.002,69981.0,69980.0,0.3479721]
[1730166330841,0.0808923,69981.0,69980.0,0.30522852]
[1730166331648,0.0808923,69981.0,69980.0,0.24088952]
[1730166331649,0.14417429,69981.0,69980.0,0.24088952]
[1730166331949,0.0808923,69981.0,69980.0,0.24088952]
[1730166332947,0.002,69981.0,69980.0,0.24088952]
[1730166333157,0.0808923,69981.0,69980.0,0.30522852]
[1730166333837,0.14454213,69981.0,69980.0,0.30522852]
[1730166334036,0.0808923,69981.0,69980.0,0.30522852]
[1730166334634,0.0808923,69981.0,69980.0,0.24088952]
[1730166334846,0.22343443,69981.0,69980.0,0.24088952]
[1730166335237,0.0808923,69981.0,69980.0,0.24088952]
[1730166335639,0.4416923,69981.0,69980.0,0.24088952]
[1730166336241,0.0808923,69981.0,69980.0,0.24088952]
[1730166336444,0.4416923,69981.0,69980.0,0.24088952]
[1730166336645,0.0808923,69981.0,69980.0,0.24088952]
[1730166336852,0.1452303,69981.0,69980.0,0.24088952]
[1730166337658,0.30159262,69981.0,69980.0,0.24088952]
[1730166337849,0.22270032,69981.0,69980.0,0.24088952]
[1730166338053,0.066338,69981.0,69980.0,0.24088952]
[1730166338251,0.066338,69981.0,69980.0,0.42100523]
[1730166338554,0.066338,69981.0,69980.0,0.37826165]
[1730166339142,0.002,69981.0,69980.0,0.37826165]
[1730166340551,0.002,69981.0,69980.0,0.39536823]
[1730166341145,0.002,69981.0,69980.0,0.57578685]
[1730166341346,0.002,69981.0,69980.0,0.50431332]
[1730166342449,0.3608,69996.0,69989.0,0.06433]
[1730166342644,0.3608,69996.0,69995.0,0.13733779]
[1730166343446,0.3608,69996.0,69993.0,0.04284045]
[1730166343646,0.3608,69996.0,69995.0,0.13733779]
[1730166343955,0.3618,69996.0,69995.0,0.13733779]
[1730166344347,0.3618,69996.0,69995.0,0.20166279]
[1730166344850,0.3618,69996.0,69995.0,0.41680386]
[1730166345853,0.3618,69996.0,69995.0,0.49936646]
[1730166346050,0.001,69996.0,69995.0,0.44224585]
[1730166346258,0.00214329,70003.0,69995.0,0.37792085]
[1730166346559,0.00214329,70003.0,70002.0,0.20165679]
[1730166346854,0.00214329,70003.0,70002.0,0.41711136]
[1730166348554,0.3608,70005.0,70004.0,0.064317]
[1730166348860,0.3608,70005.0,70004.0,0.27954582]
[1730166349760,0.3718,70005.0,70004.0,0.27954582]
[1730166350961,0.011,70005.0,70004.0,0.27954582]
[1730166352051,0.011,70005.0,70004.0,0.30591941]
[1730166352668,0.011,70005.0,70004.0,0.73447941]
[1730166353058,0.08986169,70005.0,70004.0,0.73447941]
[1730166353264,0.08986169,70005.0,70004.0,0.30591941]
[1730166353764,0.08486169,70005.0,70004.0,0.30591941]
[1730166354768,0.07886169,70005.0,70004.0,0.30591941]
[1730166354954,0.07986169,70005.0,70004.0,0.30591941]
[1730166358160,0.1311181,70005.0,70004.0,0.30591941]
[1730166358361,0.1707181,70005.0,70004.0,0.30591941]
[1730166359670,0.1707181,70005.0,70004.0,0.24160241]
[1730166360062,0.11946169,70005.0,70004.0,0.24160241]
[1730166361175,0.0406,70005.0,70004.0,0.24160241]
[1730166361388,0.0406,70005.0,70000.0,0.06432]
[1730166361666,0.0406,70005.0,69994.0,0.36152]
[1730166361667,0.13733779,70002.0,69996.0,0.064324]
[1730166361859,0.0426,70001.0,69996.0,0.064324]
[1730166362059,0.3608,69999.0,69997.0,0.21377417]
[1730166362267,0.13733779,69998.0,69997.0,0.21377417]
[1730166362466,0.20165979,69998.0,69997.0,0.21377417]
[1730166362859,0.20165979,69998.0,69995.0,0.21556877]
[1730166363064,0.20165979,69998.0,69992.0,0.064328]
[1730166363258,0.20165979,69998.0,69997.0,0.001]
[1730166363668,0.20165979,69998.0,69997.0,0.2164238]
[1730166364461,0.63025979,69998.0,69997.0,0.001]
[1730166364669,0.064324,69996.0,69989.0,0.06647392]
[1730166364862,0.13733779,69993.0,69989.0,0.06647392]
[1730166365069,0.0415,69992.0,69990.0,0.2136817]
[1730166365777,0.0415,69992.0,69990.0,0.2780107]
[1730166366076,0.0415,69992.0,69991.0,0.20166679]
[1730166366668,0.001,69993.0,69992.0,0.064328]
[1730166367176,0.001,69993.0,69992.0,0.27985534]
[1730166367878,0.0426,70001.0,69992.0,0.21552734]
[1730166368068,0.0426,70001.0,69999.0,0.064321]
[1730166368668,0.0426,70001.0,70000.0,0.064321]
[1730166369272,0.0446,70001.0,70000.0,0.064321]
[1730166369673,0.0436,70001.0,70000.0,0.064321]
[1730166369866,0.0456,70001.0,70000.0,0.064321]
[1730166371564,0.0446,70001.0,70000.0,0.064321]
[1730166371770,0.0456,70001.0,70000.0,0.064321]
[1730166374375,0.0456,70001.0,70000.0,0.41557958]
[1730166374579,0.003,70001.0,70000.0,0.41557958]
[1730166376168,0.08186864,70001.0,70000.0,0.41557958]
[1730166376567,0.08186864,70001.0,70000.0,0.45846801]
[1730166378568,0.08186864,70001.0,70000.0,0.41555174]
[1730166379076,0.01766864,70001.0,70000.0,0.84411174]
[1730166379470,0.05126093,70010.0,70009.0,0.064312]
[1730166379669,0.05125706,70010.0,70009.0,0.63014195]
[1730166379869,0.05125706,70012.0,70011.0,0.06431]
[1730166380063,0.18563431,70015.0,70014.0,0.064307]
[1730166380273,0.23689137,70015.0,70014.0,0.20161695]
[1730166380875,0.18563431,70015.0,70014.0,0.20161695]
[1730166381075,0.05125706,70017.0,70014.0,0.20161695]
[1730166381275,0.22753431,70019.0,70014.0,0.20161695]
[1730166381489,0.009,70015.0,70014.0,0.20161695]
[1730166382281,0.0419,70019.0,70015.0,0.064307]
[1730166382282,0.011,70017.0,70015.0,0.064307]
[1730166382885,0.011,70017.0,70010.0,0.13730995]
[1730166383184,0.011,70017.0,70012.0,0.064309]
[1730166383185,0.0423,70016.0,70012.0,0.064309]
[1730166383478,0.0423,70016.0,70013.0,0.21322255]
[1730166383991,0.009,70015.0,70013.0,0.27753155]
[1730166384276,0.3698,70015.0,70013.0,0.27753155]
[1730166384479,0.3608,70015.0,70013.0,0.27753155]
[1730166384667,0.3608,70015.0,70013.0,0.21322255]
[1730166384876,0.01,70016.0,70015.0,0.064307]
[1730166385487,0.013,70017.0,70016.0,0.064306]
[1730166385671,0.013,70017.0,70014.0,0.13730995]
[1730166385672,0.00214293,70020.0,70019.0,0.064303]
[1730166385868,0.00214293,70020.0,70019.0,0.20161295]
[1730166388184,0.01614293,70020.0,70019.0,0.20161295]
[1730166388576,0.03014293,70020.0,70019.0,0.20161295]
[1730166390975,0.03014293,70020.0,70019.0,0.22687846]
[1730166391174,0.16024248,70020.0,70019.0,0.22687846]